Cogmind - Beta 14 @@@ ROGUE MODE // 2024.08.28 @ 11:56:48 Player: Olafz Result: Destroyed by G-47 Trooper with Particle Gun Performance ------------- Evolutions (2) 1000 Regions Visited (5) 1000 Robots Destroyed (14) 70 Value Destroyed (438) 438 Prototype IDs (23) 460 Alien Tech Used (0) 0 Bonus (300) 300 TOTAL SCORE: 3268 Bonus ------- Aligned with FarCom 300 Cogmind --------- Core Integrity 0/550 Matter 105/300 Energy 100/100 System Corruption 0% Temperature Cool (18) Movement Core (400) Ox7 Location -8/Materials Parts ------- > --- POWER (1) -------- (None) > --- PROPULSION (3) --- (None) > --- UTILITY (5) ------ Large Storage Unit Improved Targeting Computer Improved Targeting Computer Improved Utility Shielding > --- WEAPON (2) ------- (None) > --- INVENTORY (15) --- Light Ion Engine Large Storage Unit High-capacity Matter Pod (200) High-capacity Matter Pod (200) Field Lobotomy Kit (5) Plasma Cutter Peak State ------------ > --- POWER ------------ Light Ion Engine > --- PROPULSION ------- Aluminum Leg Aluminum Leg Aluminum Leg > --- UTILITY ---------- Large Storage Unit Structural Scanner Improved Targeting Computer Improved Targeting Computer > --- WEAPON ----------- Battle Cannon Grenade Launcher > --- INVENTORY -------- Light Ion Engine Aluminum Leg Aluminum Leg Large Storage Unit High-capacity Matter Pod High-capacity Matter Pod Assault Rifle Field Lobotomy Kit Plasma Cutter [Rating: 14] Favorites ----------- Power Light Nuclear Core Engine Light Ion Engine Power Core Light Nuclear Core Propulsion Aluminum Leg Leg Aluminum Leg Utility Large Storage Unit Device Structural Scanner Storage Large Storage Unit Processor Improved Targeting Computer Protection Improved Utility Shielding Weapon Assault Rifle Ballistic Gun Assault Rifle Ballistic Cannon Battle Cannon Launcher Grenade Launcher Build | -11 -10 -10 -10 -9 -8 ------- Run | Yrd Mat Min Exi Min Mat Slots Evolved 4 | . . . . . 4 Power . | . . . . . . Propulsion 1 | . . . . . 1 Utility 3 | . . . . . 3 Weapon . | . . . . . . Parts Attached 23 | 6 2 3 . 4 8 Power 3 | 1 . 1 . 1 . Engine 2 | 1 . . . 1 . Core 1 | . . 1 . . . Reactor . | . . . . . . Propulsion 5 | 2 . . . . 3 Treads . | . . . . . . Leg 5 | 2 . . . . 3 Wheel . | . . . . . . Hover . | . . . . . . Flight . | . . . . . . Utility 6 | 1 2 . . . 3 Device 1 | . 1 . . . . Storage 2 | 1 1 . . . . Processor 2 | . . . . . 2 Hackware . | . . . . . . Protection 1 | . . . . . 1 Artifact . | . . . . . . Weapon 9 | 2 . 2 . 3 2 Energy Gun . | . . . . . . Energy Cannon . | . . . . . . Ballistic Gun 5 | 2 . . . 2 1 Ballistic Cannon 1 | . . 1 . . . Launcher 3 | . . 1 . 1 1 Special Weapon . | . . . . . . Impact Weapon . | . . . . . . Slashing Weapon . | . . . . . . Piercing Weapon . | . . . . . . Special Melee Weapon . | . . . . . . Unidentified Prototypes . | . . . . . . Parts Lost 11 | . . . . 2 9 Power 2 | . . . . 1 1 Propulsion 4 | . . . . . 4 Utility 1 | . . . . . 1 Weapon 4 | . . . . 1 3 Highest Loss Streak 7 | . . . . 2 7 To Critical Strikes . | . . . . . . Average Slot Usage (%) 96 | . 90 100 100 99 63 Engine 3 | . 14 . . 4 3 Core 10 | . . 13 14 8 . Leg 27 | . 28 28 28 28 21 Device 12 | . 5 14 14 14 3 Storage 13 | . 14 14 14 14 9 Processor 1 | . . . . . 17 Ballistic Gun 10 | . 28 15 . 2 . Ballistic Cannon 10 | . . 11 14 14 2 Launcher 6 | . . 1 14 11 1 Peak Build Rating 14 | 6 7 10 12 12 14 Average Rating 9 | 4 6 9 10 11 11 On Entrance 7 | . 6 7 10 12 10 Naked Turns . | . . . . . . Heaviest Build 32 | 12 28 32 32 32 30 Greatest Support 30 | 20 20 20 20 20 30 Greatest Overweight (x) 3 | 3 1 1 1 1 1 Average Overweight (x) . | . . 1 1 1 . Largest Inventory Capacity 15 | 8 15 15 15 15 15 Average Capacity 13 | 7 9 15 15 15 15 Most Carried 12 | 1 4 8 11 12 11 Average Carried 7 | . 2 7 8 11 6 Final Capacity 15 | 8 15 15 15 15 15 Final Carried 12 | 1 3 8 11 12 6 Class Distribution -------------------- 100% | Mutant Dominant Class ---------------- Mutant | -10/Materials Mutant | -10/Mines Mutant | -10/Exiles Mutant | -9/Mines Mutant | -8/Materials Resources | -11 -10 -10 -10 -9 -8 ----------- Run | Yrd Mat Min Exi Min Mat Matter Collected 633 | 107 201 151 150 13 11 Remotely . | . . . . . . Salvage Created 438 | . 232 156 . 50 . Parts 24 | . 15 8 . 1 . Haulers Intercepted . | . . . . . . Recyclers Shooed . | . . . . . . Parts Field Recycled . | . . . . . . Retrieved Matter . | . . . . . . Parts Self-Destructed . | . . . . . . Prevented . | . . . . . . Kills | -11 -10 -10 -10 -9 -8 ------- Run | Yrd Mat Min Exi Min Mat Combat Hostiles Destroyed 14 | . 7 5 . 2 . Guns 10 | . 7 2 . 1 . Cannons 4 | . . 3 . 1 . Classes Destroyed 5 | . 2 2 . 1 . Tunneler 1 | . . 1 . . . Swarmer 3 | . 3 . . . . Grunt 8 | . 4 4 . . . Sentry 2 | . . . . 2 . Assembled 1 | . . 1 . . . Best Kill Streak 5 | . 5 3 . 1 . Combat Bots Only 5 | . 5 2 . 1 . Max Kills in Single Turn 1 | . 1 1 . 1 . Gunslinging . | . . . . . . Exploded . | . . . . . . Melee . | . . . . . . Uniques/NPCs Destroyed . | . . . . . . Combat | -11 -10 -10 -10 -9 -8 -------- Run | Yrd Mat Min Exi Min Mat Hostile Shots Fired 153 | . 27 13 . 40 73 Missed 43 | . 8 4 . 13 18 Damage Taken 1846 | . 253 156 . 399 1038 Core 809 | . 92 57 . 98 562 Absorbed by Shields . | . . . . . . Redirected to Shielding 9 | . . . . . 9 Core Remaining (%) 50 | 100 . . . 1 . Volleys Fired 54 | . 19 14 . 13 8 Largest 2 | . 2 2 . 2 2 Hottest 69 | . 40 69 . 59 69 Shots Fired 102 | . 38 26 . 26 12 Gun 68 | . 38 15 . 13 2 Cannon 30 | . . 9 . 13 8 Launcher 4 | . . 2 . . 2 Special . | . . . . . . Kinetic 98 | . 38 24 . 26 10 Thermal . | . . . . . . Explosive 4 | . . 2 . . 2 Electromagnetic . | . . . . . . Robot Hit Streak 8 | . 8 6 . 7 8 Robot Miss Streak 4 | . 3 4 . 1 2 Penetration Max . | . . . . . . Secondary Targets 1 | . 1 . . . . Max Gunslinging Chain 1 | . 1 . . . . Shots Hit Robots 66 | . 25 10 . 22 9 Core Hits 27 | . 12 8 . 4 3 Critical Kills . | . . . . . . Critical Parts Destroyed . | . . . . . . Critical Strikes 1 | . . 1 . . . Blast 1 | . . 1 . . . Melee Attacks . | . . . . . . Impact . | . . . . . . Slashing . | . . . . . . Piercing . | . . . . . . Sneak Attacks . | . . . . . . Combat Hostiles . | . . . . . . Follow-up Attacks . | . . . . . . Damage Inflicted 1269 | . 323 263 . 404 279 Guns 550 | . 323 90 . 112 25 Cannons 550 | . . 105 . 292 153 Explosions 167 | . . 68 . . 99 Melee . | . . . . . . Ramming 2 | . . . . . 2 Kinetic 1100 | . 323 195 . 404 178 Thermal . | . . . . . . Explosive 167 | . . 68 . . 99 Electromagnetic . | . . . . . . Impact . | . . . . . . Slashing . | . . . . . . Piercing . | . . . . . . Highest Corruption . | . . . . . . Average Corruption . | . . . . . . Corruption Purged . | . . . . . . Corruption Blocked . | . . . . . . Overload Shots . | . . . . . . Overflow Damage . | . . . . . . Projectiles . | . . . . . . Explosions . | . . . . . . Melee . | . . . . . . Knockbacks 3 | . . 1 . . 2 Impact . | . . . . . . Kinetic 3 | . . 1 . . 2 Secondary . | . . . . . . Self-Inflicted Damage 36 | . . 32 . . 4 Shots 2 | . . 1 . . 1 Rammed 2 | . . . . . 2 Targets Rammed 5 | . . . . . 5 Kicked 3 | . . . . . 3 Crushed . | . . . . . . Highest Temperature 99 | . 20 25 . 99 55 Average Temperature 35 | . 6 8 . 65 32 Received Heat Transfer 807 | . 153 69 . 153 432 Siege Activations . | . . . . . . Robots Corrupted . | . . . . . . Combat Hostiles . | . . . . . . Parts Fried . | . . . . . . Impact Corruptions . | . . . . . . Robots Melted . | . . . . . . Combat Hostiles . | . . . . . . Parts Melted . | . . . . . . Heat Transferred . | . . . . . . Parts Sabotaged . | . . . . . . Parts Stolen . | . . . . . . Parts Stripped . | . . . . . . Power Chain Reactions . | . . . . . . Alert | -11 -10 -10 -10 -9 -8 ------- Run | Yrd Mat Min Exi Min Mat Peak Influence 253 | . 253 148 . 35 16 Initial 98 | . . 98 . . 13 Average 71 | . 116 99 . 15 2 Maximum Alert Level 1 | . 1 . . . . Low Security (%) 93 | 100 66 100 . 100 100 Level 1 6 | . 33 . . . . Level 2 . | . . . . . . Level 3 . | . . . . . . Level 4 . | . . . . . . Level 5 . | . . . . . . High Security . | . . . . . . Max Security . | . . . . . . Squads Dispatched . | . . . . . . Investigation . | . . . . . . Extermination . | . . . . . . Reinforcement . | . . . . . . Assault . | . . . . . . Garrison . | . . . . . . Intercept . | . . . . . . Searches Triggered . | . . . . . . Construction Impeded . | . . . . . . Haulers Reinforced . | . . . . . . Active Scanning Responses . | . . . . . . Cargo Convoy Interrupts . | . . . . . . Stealth | -11 -10 -10 -10 -9 -8 --------- Run | Yrd Mat Min Exi Min Mat Distress Signals 3 | . 3 . . . . Communications Jammed . | . . . . . . Distress Signals . | . . . . . . Times Spotted 22 | . 12 5 . 2 3 Peak Tracking Total 7 | . 7 2 . 2 3 Tactical Retreats 2 | . 2 . . . . Traps | -11 -10 -10 -10 -9 -8 ------- Run | Yrd Mat Min Exi Min Mat Traps Triggered . | . . . . . . Indirectly . | . . . . . . Trap Hack Attempts . | . . . . . . Triggered . | . . . . . . Disarmed . | . . . . . . Reprogrammed . | . . . . . . Reused . | . . . . . . Traps Extracted . | . . . . . . Installed . | . . . . . . Triggered . | . . . . . . Machines | -11 -10 -10 -10 -9 -8 ---------- Run | Yrd Mat Min Exi Min Mat Machines Disabled . | . . . . . . Max in Single Turn . | . . . . . . Machines Repaired . | . . . . . . Machines Dismantled . | . . . . . . Machines Sabotaged . | . . . . . . Overloaded Fab Kills . | . . . . . . Hacking | -11 -10 -10 -10 -9 -8 --------- Run | Yrd Mat Min Exi Min Mat Machines Accessed 3 | . 1 . 1 . 1 Terminals 2 | . 1 . . . 1 Fabricators . | . . . . . . Repair Stations . | . . . . . . Recycling Units . | . . . . . . Scanalyzers . | . . . . . . Garrison Access . | . . . . . . Total Hacks 5 | . 2 . 1 . 2 Successful 3 | . 2 . 1 . . Failed 2 | . . . . . 2 Catastrophic . | . . . . . . Database Lockouts . | . . . . . . Manual 5 | . 2 . 1 . 2 Terminals 4 | . 2 . . . 2 Fabricators . | . . . . . . Repair Stations . | . . . . . . Recycling Units . | . . . . . . Scanalyzers . | . . . . . . Garrison Access . | . . . . . . Terminal Hacks 2 | . 1 . 1 . . Branch Access Points 1 | . 1 . . . . Derelict Proto ID Bank 1 | . . . 1 . . Fabricator Hacks . | . . . . . . Repair Station Hacks . | . . . . . . Recycling Unit Hacks . | . . . . . . Scanalyzer . | . . . . . . Garrison Access Hacks . | . . . . . . Unauthorized Hacks 1 | . 1 . . . . Terminals 1 | . 1 . . . . Botnet 1 | . 1 . . . . Fabricators . | . . . . . . Repair Stations . | . . . . . . Recycling Units . | . . . . . . Scanalyzers . | . . . . . . Garrison Access . | . . . . . . Data Cores Recovered . | . . . . . . Used . | . . . . . . Hacking Detections 1 | . . . . . 1 Full Trace Events . | . . . . . . Feedback Events . | . . . . . . Feedback Blocked . | . . . . . . Robot Schematics Acquired . | . . . . . . Robots Built . | . . . . . . Authchips . | . . . . . . Time . | . . . . . . Total Robot Build Rating . | . . . . . . Part Schematics Acquired . | . . . . . . Parts Built . | . . . . . . Authchips . | . . . . . . Time . | . . . . . . Total Part Build Rating . | . . . . . . Parts Repaired . | . . . . . . Time . | . . . . . . Parts Recycled . | . . . . . . Recycled Matter . | . . . . . . Retrieved Matter . | . . . . . . Retrieved Components . | . . . . . . Parts Scanalyzed . | . . . . . . Part Schematics Acquired . | . . . . . . Parts Damaged . | . . . . . . Bothacking | -11 -10 -10 -10 -9 -8 ------------ Run | Yrd Mat Min Exi Min Mat Used RIF Installer . | . . . . . . Robots Hacked . | . . . . . . Non-combat . | . . . . . . Combat . | . . . . . . Robot Hacks Applied . | . . . . . . Relay Couplers Released . | . . . . . . Fabnet Peak Effective % . | . . . . . . Robots Rewired . | . . . . . . Allies Hacked . | . . . . . . Hacks Repelled . | . . . . . . Allies | -11 -10 -10 -10 -9 -8 -------- Run | Yrd Mat Min Exi Min Mat Total Allies . | . . . . . . Largest Group . | . . . . . . Highest-Rated Group . | . . . . . . Highest-Rated Ally . | . . . . . . Total Orders . | . . . . . . Ally Attacks . | . . . . . . Total Damage . | . . . . . . Kills . | . . . . . . Allies Corrupted . | . . . . . . Allies Melted . | . . . . . . Intel | -11 -10 -10 -10 -9 -8 ------- Run | Yrd Mat Min Exi Min Mat Robot Analysis Total . | . . . . . . Derelict Logs Recovered 2 | . . 2 . . . Drone Launches . | . . . . . . Drone Recoveries . | . . . . . . Exploration | -11 -10 -10 -10 -9 -8 ------------- Run | Yrd Mat Min Exi Min Mat Turns Passed 1755 | 50 242 611 454 300 98 Spaces Moved 864 | 34 136 295 238 119 42 Core 11 | 11 . . . . . Treads . | . . . . . . Legs 853 | 23 136 295 238 119 42 Wheels . | . . . . . . Hover . | . . . . . . Flight . | . . . . . . Fastest Speed 50 | 50 120 190 190 190 120 Average Speed 174 | 120 127 190 190 190 130 Slowest Speed 200 | 200 190 190 190 190 190 Overloaded Moves . | . . . . . . Propulsion Burnouts . | . . . . . . Robots Hopped . | . . . . . . Cave-ins Triggered . | . . . . . . Exploration Rate (%) 35 | 3 32 81 61 30 6 Regions Visited 5 Branch Regions 3 Pre-discovered Areas 2 | . . 2 . . . Known Exits Taken 1 | . 1 . . . . Unknown Exits Taken 4 | 1 . 1 1 1 . Scrap Searched 4 | . . 3 . 1 . Spaces Dug . | . . . . . . Terrain Destroyed 34 | . . 10 . . 24 Melee . | . . . . . . Projectile 1 | . . . . . 1 AOE 33 | . . 10 . . 23 Terrain Rammed . | . . . . . . Walls Destroyed . | . . . . . . Machines Disabled . | . . . . . . Actions | -11 -10 -10 -10 -9 -8 --------- Run | Yrd Mat Min Exi Min Mat Total 994 | 40 166 319 240 166 63 Wait 39 | . 7 4 . 28 . Move 859 | 33 135 294 237 118 42 Hop . | . . . . . . Pick Up 12 | 1 2 3 3 3 . Fast Attach 9 | 6 1 1 . . 1 Attach 8 | . . . . 2 6 Detach 1 | . . 1 . . . Swap 6 | . 1 2 . 2 1 Drop 1 | . 1 . . . . Fire 54 | . 19 14 . 13 8 Melee . | . . . . . . Ram 2 | . . . . . 2 Kick 3 | . . . . . 3 Crush . | . . . . . . Escape Stasis . | . . . . . . Rewire . | . . . . . . Trap . | . . . . . . Miscellaneous . | . . . . . . Route ------- -11/Scrapyard -10/Materials -10/Mines (discovered 3 exits: [*Mat x2] / *Exi) -10/Exiles (discovered 2 exits: [*Min x2]) -9/Mines -8/Materials History --------- Turn | Location | Event 2 | -11/Scrapyard | Met Revision 17 27 | -11/Scrapyard | Discovered new exit (range 13) 51 | -11/Scrapyard | Entered Materials 94 | -10/Materials | Identified exit to Mines 293 | -10/Materials | Entered Mines 302 | -10/Mines | Build established: Mutant 304 | -10/Mines | Core integrity fell below 50% 308 | -10/Mines | Discovered new exit (range 15) 375 | -10/Mines | Learned location of Storage (-7) 413 | -10/Mines | A weapon hastily lodged in a ceiling crevice suddenly fell to the ground 491 | -10/Mines | Discovered new exit (range 9) 798 | -10/Mines | Excavation squad dispatched 798 | -10/Mines | A large section of the Mines collapsed 896 | -10/Mines | Deemed a non-threat by the Exiles lab entrance 896 | -10/Mines | Discovered new exit (range 5) 904 | -10/Mines | Entered Exiles 929 | -10/Exiles | Discovered new exit (range 15) 952 | -10/Exiles | Met 8R-AWN 982 | -10/Exiles | Met EX-HEX 1037 | -10/Exiles | Met EX-BIN 1060 | -10/Exiles | Aligned with FarCom system 1062 | -10/Exiles | Given EX-Vault access code 1112 | -10/Exiles | Opened EX-Vault 1134 | -10/Exiles | Found Field Lobotomy Kit 1175 | -10/Exiles | Warned to stay clear of 0b10 Research branches 1232 | -10/Exiles | Met EX-DEC 1343 | -10/Exiles | Discovered new exit (range 10) 1358 | -10/Exiles | Left Exiles lab with Field Lobotomy Kit 1358 | -10/Exiles | Entered Mines 1521 | -9/Mines | Core integrity fell below 20% 1644 | -9/Mines | Discovered new exit (range 7) 1658 | -9/Mines | Entered Materials 1658 | -8/Materials | Evolved 4 slots: Propulsion x1, Utility x3 1722 | -8/Materials | Lost 7 parts (1p2n1u3w) 1744 | -8/Materials | Core integrity fell below 50% 1753 | -8/Materials | Core integrity fell below 20% 1756 | -8/Materials | Destroyed by G-47 Trooper with Particle Gun Last Messages --------------- K-01 Serf collects debris. U-05 Engineer lays Concrete. K-01 Serf collects debris. Connecting with Terminal... Current location identified: Materials M-13 Machinist repairs L-31 Rogue. M-13 Machinist fits Backup Plating I on L-31 Rogue. M-13 Machinist repairs Imp. Aluminum Leg. Aluminum Leg severed. Kicked L-31 Rogue. Aluminum Leg destroyed. M-13 Machinist repairs G-47 Trooper. Kicked L-31 Rogue. K-01 Serf collects debris. Kicked L-31 Rogue out of the way. Aluminum Leg destroyed. Slammed into L-31 Rogue. K-01 Serf collects debris. Slammed into L-31 Rogue. K-01 Serf collects debris. Map ----- +----------------------------------------------------+ | ???????????????????### ###?? | | ???????????????????## ###? | | ???????????????????## ##? | | ?????????????????? ## ###? | | ?????????????????? # ###? | | ?????????????????? ## ##? | | ?????????????????? # ##? | | ?????????????????? ### ##? | | ???????#####?????? ### ###? | | ?????? ###+### ###? | | ?????? ##?? | | ?????? % ##?? | | ???????"" ##?? | | ???????" ####### ##?? | | ??????? ???????#### ###?? | | ??????????????????#### ###?? | | ??????????????????# # ##??? | | ???????????????????# ##??? | | ???????????????????# # #???? | | ???????????????????### #???? | | ????????????????????## ##??? | | ????????????????????# #??? | | ????????????????????# #??? | | ????????????????????# kTgm#??? | | ????????????????????# l #??? | | ????????????????????# g@#??? | | ???????????????????####+###### | | ???????????????????# = # | | ???????????????????# # | | ???????????????????# """ # | | ???????????????????# """ # | | ???????????????????# """ " " # | | ???????????????????# """ "R" # | | ???????????????????# """ # | | ???????????????????# # | | ???????????????????########### | | ?????????????????????????????? | | ?????????????????????????????? | | ?????????????????????????????? | | ?????????????????????????????? | | ?????????????????????????????? | | ?????????????????????????????? | | ?????????????????????????????? | | ?????????????????????????????? | | ?????????????????????????????? | | ?????????????????????????????? | | ?????????????????????????????? | | ?????????????????????????????? | | ?????????????????????????????? | | ?????????????????????????????? | +----------------------------------------------------+ Best States ------------- Heat Dissipation 31 Energy Generation 14 Energy Capacity 160 Matter Stores 300 Matter Capacity 300 Sight Range 16 Terrain Scan Density 10 Utility Shielding 66 Evasion (%) 55 Targeting Accuracy 12 Item Schematics ----------------- None Robot Schematics ------------------ None Fabricated ------------ Nothing Alien Tech Used ----------------- None Achievements -------------- None Challenges ------------ None Game ------ Seed GreatRecoilRay Manual? 0 Play Time 00:11:11 Cumulative 253.2 hours Start 2024.08.28 @ 11:34:53 End 2024.08.28 @ 11:56:48 Sessions 1 Manual Loads 0 Difficulty Rogue Special Mode None Game No. 476 Rogue 474 Adventurer 2 Explorer 0 Win Type - Total 14 Types 11/0/1/2/0/0/0/0/0 Lore% 74 Gallery% 68 Achievement% 57 Wizard Run 0 Options --------- Layout 0 ASCII 0 Keyboard 1 Movement Numpad Keybinds 1 Fullscreen 2 Font 18/SmallcapsGlow Map View 76x50 Zoom Use 0% Tactical HUD 1 Map Filters NONE Filters NONE Steam 1 RUN: 1e492fc9-3532-4238-a63a-d751848ef49a